[Event "December 19 Early 2023"]
[Site "https://www.chess.com"]
[Date "2023.12.19"]
[Round "11"]
[White "Barwinska, Ewa"]
[Black "Feliz Dotel, Dewar Bienvenido"]
[Result "0-1"]
[Board "138"]
[TimeControl "180+1"]
[WhiteFideId "21833761"]
[BlackFideId "6402801"]
[WhiteElo "1879"]
[BlackElo "2069"]
[WhiteTeam "POL"]
[BlackTeam "DOM"]
[WhiteClock "0:00:02"]
[BlackClock "0:00:12"]

1. e4 {[%clk 0:03:00]}  c5 {[%clk 0:02:59]} 2. Nf3 {[%clk 0:03:00]}  Nc6 {[%clk 0:02:57]} 3. d4 {[%clk 0:02:59]}  cxd4 {[%clk 0:02:58]} 4. Nxd4 {[%clk 0:03:00]}  g6 {[%clk 0:02:58]} 5. c4 {[%clk 0:02:58]}  Bg7 {[%clk 0:02:56]} 6. Be3 {[%clk 0:02:59]}  Nf6 {[%clk 0:02:54]} 7. Nc3 {[%clk 0:02:59]}  Ng4 {[%clk 0:02:44]} 8. Nxc6 {[%clk 0:02:23]}  Nxe3 {[%clk 0:02:42]} 9. Nxd8 {[%clk 0:02:22]}  Nxd1 {[%clk 0:02:42]} 10. Rxd1 {[%clk 0:02:21]}  Bxc3+ {[%clk 0:02:33]} 11. bxc3 {[%clk 0:02:20]}  Kxd8 {[%clk 0:02:33]} 12. c5 {[%clk 0:02:12]}  b6 {[%clk 0:02:33]} 13. cxb6 {[%clk 0:02:03]}  axb6 {[%clk 0:02:33]} 14. Bc4 {[%clk 0:02:03]}  f6 {[%clk 0:02:21]} 15. f3 {[%clk 0:01:52]}  Kc7 {[%clk 0:02:17]} 16. O-O {[%clk 0:01:37]}  Ba6 {[%clk 0:02:15]} 17. Rd4 {[%clk 0:01:29]}  Rhc8 {[%clk 0:02:06]} 18. Rfd1 {[%clk 0:01:23]}  Bxc4 {[%clk 0:01:55]} 19. Rxc4+ {[%clk 0:01:22]}  Kd8 {[%clk 0:01:55]} 20. Rcd4 {[%clk 0:01:08]}  d6 {[%clk 0:01:53]} 21. Rb4 {[%clk 0:00:50]}  Rxc3 {[%clk 0:01:48]} 22. Rd2 {[%clk 0:00:40]}  Ra6 {[%clk 0:01:42]} 23. f4 {[%clk 0:00:33]}  Rca3 {[%clk 0:01:36]} 24. e5 {[%clk 0:00:27]}  fxe5 {[%clk 0:01:03]} 25. fxe5 {[%clk 0:00:28]}  Rxa2 {[%clk 0:01:03]} 26. Rxa2 {[%clk 0:00:25]}  Rxa2 {[%clk 0:01:04]} 27. exd6 {[%clk 0:00:23]}  Ra6 {[%clk 0:00:51]} 28. dxe7+ {[%clk 0:00:22]}  Kxe7 {[%clk 0:00:51]} 29. Kf2 {[%clk 0:00:20]}  Kd6 {[%clk 0:00:50]} 30. Rh4 {[%clk 0:00:15]}  h5 {[%clk 0:00:46]} 31. Rf4 {[%clk 0:00:15]}  Ke5 {[%clk 0:00:42]} 32. Rf8 {[%clk 0:00:15]}  Ra2+ {[%clk 0:00:40]} 33. Kg3 {[%clk 0:00:14]}  g5 {[%clk 0:00:40]} 34. h3 {[%clk 0:00:09]}  Rb2 {[%clk 0:00:38]} 35. Re8+ {[%clk 0:00:06]}  Kd4 {[%clk 0:00:34]} 36. Rg8 {[%clk 0:00:06]}  Rb3+ {[%clk 0:00:33]} 37. Kh2 {[%clk 0:00:06]}  Rb5 {[%clk 0:00:31]} 38. Rh8 {[%clk 0:00:05]}  h4 {[%clk 0:00:31]} 39. Rg8 {[%clk 0:00:05]}  Ke3 {[%clk 0:00:31]} 40. Kg1 {[%clk 0:00:05]}  Kf4 {[%clk 0:00:28]} 41. Kh2 {[%clk 0:00:03]}  Rf5 {[%clk 0:00:25]} 42. Rb8 {[%clk 0:00:03]}  b5 {[%clk 0:00:26]} 43. Rb6 {[%clk 0:00:03]}  Ke3 {[%clk 0:00:23]} 44. Rb8 {[%clk 0:00:03]}  Kf2 {[%clk 0:00:21]} 45. Rb7 {[%clk 0:00:02]}  Kf1 {[%clk 0:00:20]} 46. Rc7 {[%clk 0:00:02]}  b4 {[%clk 0:00:19]} 47. Rc1+ {[%clk 0:00:02]}  Kf2 {[%clk 0:00:19]} 48. Rb1 {[%clk 0:00:03]}  Rb5 {[%clk 0:00:19]} 49. Rb3 {[%clk 0:00:04]}  Ke2 {[%clk 0:00:17]} 50. g3 {[%clk 0:00:04]}  Kd2 {[%clk 0:00:15]} 51. gxh4 {[%clk 0:00:03]}  gxh4 {[%clk 0:00:15]} 52. Kg2 {[%clk 0:00:04]}  Kc2 {[%clk 0:00:15]} 53. Rf3 {[%clk 0:00:04]}  b3 {[%clk 0:00:15]} 54. Rf2+ {[%clk 0:00:04]}  Kc3 {[%clk 0:00:14]} 55. Rf3+ {[%clk 0:00:04]}  Kd4 {[%clk 0:00:14]} 56. Rf4+ {[%clk 0:00:04]}  Ke3 {[%clk 0:00:14]} 57. Rf3+ {[%clk 0:00:04]}  Ke4 {[%clk 0:00:14]} 58. Rf1 {[%clk 0:00:04]}  b2 {[%clk 0:00:14]} 59. Rb1 {[%clk 0:00:05]}  Kd3 {[%clk 0:00:12]} 60. Kf3 {[%clk 0:00:05]}  Rb4 {[%clk 0:00:11]} 61. Rh1 {[%clk 0:00:02]}  b1=Q {[%clk 0:00:11]} 62. Rxb1 {[%clk 0:00:03]}  Rxb1 {[%clk 0:00:12]} 63. Kg4 {[%clk 0:00:04]}  Rb4+ {[%clk 0:00:11]} 64. Kg5 {[%clk 0:00:02]}  Ke3 {[%clk 0:00:12]} 0-1

[Event "December 19 Early 2023"]
[Site "https://www.chess.com"]
[Date "2023.12.19"]
[Round "11"]
[White "De Souza, Cristiano Gomes"]
[Black "Tilahun , Abel Mathewos"]
[Result "1-0"]
[Board "139"]
[TimeControl "180+1"]
[WhiteFideId "2151758"]
[BlackFideId "15702391"]
[WhiteElo "2068"]
[BlackElo "1917"]
[WhiteTeam "BRA"]
[BlackTeam "ETH"]
[WhiteClock "0:01:34"]
[BlackClock "0:00:03"]

1. d4 {[%clk 0:03:00]}  d5 {[%clk 0:02:59]} 2. c4 {[%clk 0:02:59]}  e6 {[%clk 0:02:59]} 3. Nf3 {[%clk 0:02:58]}  Nf6 {[%clk 0:02:59]} 4. Nc3 {[%clk 0:02:58]}  Be7 {[%clk 0:02:58]} 5. Bg5 {[%clk 0:02:57]}  Nbd7 {[%clk 0:02:58]} 6. e3 {[%clk 0:02:56]}  h6 {[%clk 0:02:58]} 7. Bh4 {[%clk 0:02:55]}  O-O {[%clk 0:02:59]} 8. Rc1 {[%clk 0:02:54]}  a6 {[%clk 0:02:59]} 9. c5 {[%clk 0:02:52]}  c6 {[%clk 0:02:51]} 10. b4 {[%clk 0:02:51]}  b6 {[%clk 0:02:42]} 11. a4 {[%clk 0:02:47]}  a5 {[%clk 0:02:32]} 12. b5 {[%clk 0:02:38]}  cxb5 {[%clk 0:01:54]} 13. c6 {[%clk 0:02:32]}  Nb8 {[%clk 0:01:31]} 14. axb5 {[%clk 0:02:30]}  Bb4 {[%clk 0:01:13]} 15. Bd3 {[%clk 0:02:26]}  Re8 {[%clk 0:01:02]} 16. O-O {[%clk 0:02:21]}  Ra7 {[%clk 0:00:52]} 17. Ne5 {[%clk 0:02:17]}  g5 {[%clk 0:00:43]} 18. Bg3 {[%clk 0:02:16]}  Bxc3 {[%clk 0:00:18]} 19. Rxc3 {[%clk 0:02:13]}  Ne4 {[%clk 0:00:19]} 20. Bxe4 {[%clk 0:02:11]}  dxe4 {[%clk 0:00:18]} 21. Qc2 {[%clk 0:02:08]}  f5 {[%clk 0:00:18]} 22. c7 {[%clk 0:02:05]}  Rxc7 {[%clk 0:00:14]} 23. Rxc7 {[%clk 0:01:52]}  Nd7 {[%clk 0:00:15]} 24. Rc1 {[%clk 0:01:43]}  Nxe5 {[%clk 0:00:12]} 25. Bxe5 {[%clk 0:01:44]}  Bd7 {[%clk 0:00:13]} 26. Ra7 {[%clk 0:01:38]}  Bxb5 {[%clk 0:00:10]} 27. Qc7 {[%clk 0:01:35]}  Qxc7 {[%clk 0:00:05]} 28. Rcxc7 {[%clk 0:01:35]}  a4 {[%clk 0:00:04]} 29. Rh7 {[%clk 0:01:34]}  Kf8 {[%clk 0:00:03]} 30. Rh8# {[%clk 0:01:34]} 1-0

[Event "December 19 Early 2023"]
[Site "https://www.chess.com"]
[Date "2023.12.19"]
[Round "11"]
[White "Navyblue1"]
[Black "Franchini, Gabriele"]
[Result "1-0"]
[Board "140"]
[TimeControl "180+1"]
[BlackFideId "806790"]
[WhiteElo "2087"]
[BlackElo "2215"]
[BlackTeam "ITA"]
[WhiteClock "0:00:16"]
[BlackClock "0:00:01"]

1. d4 {[%clk 0:03:00]}  d5 {[%clk 0:03:00]} 2. c4 {[%clk 0:02:56]}  e6 {[%clk 0:03:00]} 3. Nf3 {[%clk 0:02:52]}  Nf6 {[%clk 0:03:00]} 4. Nc3 {[%clk 0:02:51]}  c6 {[%clk 0:03:00]} 5. cxd5 {[%clk 0:02:50]}  exd5 {[%clk 0:03:01]} 6. Bg5 {[%clk 0:02:49]}  h6 {[%clk 0:03:02]} 7. Bh4 {[%clk 0:02:48]}  Be7 {[%clk 0:03:02]} 8. Qc2 {[%clk 0:02:43]}  O-O {[%clk 0:03:02]} 9. e3 {[%clk 0:02:43]}  Re8 {[%clk 0:03:02]} 10. Bd3 {[%clk 0:02:42]}  Ne4 {[%clk 0:03:02]} 11. Bxe7 {[%clk 0:02:36]}  Qxe7 {[%clk 0:03:03]} 12. O-O {[%clk 0:02:30]}  Bf5 {[%clk 0:03:03]} 13. Rae1 {[%clk 0:02:13]}  Nd7 {[%clk 0:03:00]} 14. Nd2 {[%clk 0:02:10]}  Nxd2 {[%clk 0:02:51]} 15. Qxd2 {[%clk 0:02:07]}  Bxd3 {[%clk 0:02:42]} 16. Qxd3 {[%clk 0:02:08]}  Rad8 {[%clk 0:02:31]} 17. h3 {[%clk 0:01:48]}  Nb6 {[%clk 0:02:26]} 18. b3 {[%clk 0:01:43]}  Nc8 {[%clk 0:02:26]} 19. e4 {[%clk 0:01:33]}  dxe4 {[%clk 0:02:23]} 20. Rxe4 {[%clk 0:01:31]}  Qd7 {[%clk 0:02:12]} 21. Rxe8+ {[%clk 0:01:27]}  Rxe8 {[%clk 0:02:13]} 22. Rd1 {[%clk 0:01:21]}  Nb6 {[%clk 0:02:08]} 23. Qf3 {[%clk 0:01:11]}  Rd8 {[%clk 0:02:00]} 24. a4 {[%clk 0:01:08]}  Nd5 {[%clk 0:01:56]} 25. Nxd5 {[%clk 0:01:05]}  Qxd5 {[%clk 0:01:57]} 26. Qxd5 {[%clk 0:01:03]}  Rxd5 {[%clk 0:01:58]} 27. Kf1 {[%clk 0:01:00]}  Kf8 {[%clk 0:01:58]} 28. Ke2 {[%clk 0:01:00]}  Ke7 {[%clk 0:01:58]} 29. Ke3 {[%clk 0:01:00]}  a5 {[%clk 0:01:57]} 30. Rc1 {[%clk 0:00:59]}  Kd6 {[%clk 0:01:53]} 31. g4 {[%clk 0:00:55]}  Ke6 {[%clk 0:01:07]} 32. f4 {[%clk 0:00:54]}  Rd6 {[%clk 0:01:00]} 33. f5+ {[%clk 0:00:38]}  Kd7 {[%clk 0:00:59]} 34. h4 {[%clk 0:00:36]}  Rd5 {[%clk 0:00:56]} 35. Ke4 {[%clk 0:00:35]}  g6 {[%clk 0:00:40]} 36. fxg6 {[%clk 0:00:31]}  fxg6 {[%clk 0:00:41]} 37. Rf1 {[%clk 0:00:31]}  Ke7 {[%clk 0:00:39]} 38. Rf3 {[%clk 0:00:27]}  Rd8 {[%clk 0:00:33]} 39. Rg3 {[%clk 0:00:20]}  Re8 {[%clk 0:00:33]} 40. g5 {[%clk 0:00:20]}  Kd6+ {[%clk 0:00:30]} 41. Kf4 {[%clk 0:00:20]}  h5 {[%clk 0:00:24]} 42. Re3 {[%clk 0:00:18]}  Rxe3 {[%clk 0:00:17]} 43. Kxe3 {[%clk 0:00:18]}  Kd5 {[%clk 0:00:18]} 44. Kd3 {[%clk 0:00:18]}  b5 {[%clk 0:00:13]} 45. Ke3 {[%clk 0:00:19]}  bxa4 {[%clk 0:00:10]} 46. bxa4 {[%clk 0:00:18]}  Kc4 {[%clk 0:00:07]} 47. Ke4 {[%clk 0:00:19]}  Kb4 {[%clk 0:00:08]} 48. Ke5 {[%clk 0:00:19]}  Kxa4 {[%clk 0:00:08]} 49. Kf6 {[%clk 0:00:19]}  Kb4 {[%clk 0:00:07]} 50. Kxg6 {[%clk 0:00:20]}  a4 {[%clk 0:00:08]} 51. Kxh5 {[%clk 0:00:20]}  a3 {[%clk 0:00:09]} 52. g6 {[%clk 0:00:21]}  a2 {[%clk 0:00:09]} 53. g7 {[%clk 0:00:21]}  a1=Q {[%clk 0:00:08]} 54. g8=Q {[%clk 0:00:22]}  Qxd4 {[%clk 0:00:06]} 55. Qg5 {[%clk 0:00:17]}  c5 {[%clk 0:00:05]} 56. Kg6 {[%clk 0:00:17]}  c4 {[%clk 0:00:03]} 57. h5 {[%clk 0:00:17]}  c3 {[%clk 0:00:03]} 58. h6 {[%clk 0:00:17]}  c2 {[%clk 0:00:03]} 59. h7 {[%clk 0:00:17]}  Qd6+ {[%clk 0:00:02]} 60. Kg7 {[%clk 0:00:16]}  Qe7+ {[%clk 0:00:02]} 61. Qxe7+ {[%clk 0:00:16]}  Kb3 {[%clk 0:00:01]} 62. Qg5 {[%clk 0:00:17]}  Kb2 {[%clk 0:00:01]} 63. h8=Q {[%clk 0:00:16]} 1-0

[Event "December 19 Early 2023"]
[Site "https://www.chess.com"]
[Date "2023.12.19"]
[Round "11"]
[White "Vargas, Mauricio"]
[Black "Chemin, Justo Reinaldo"]
[Result "0-1"]
[Board "143"]
[TimeControl "180+1"]
[WhiteFideId "4404572"]
[BlackFideId "2101580"]
[WhiteElo "1982"]
[BlackElo "1940"]
[WhiteTeam "COL"]
[BlackTeam "BRA"]
[WhiteClock "0:01:23"]
[BlackClock "0:01:47"]

1. e4 {[%clk 0:03:00]}  e5 {[%clk 0:02:59]} 2. Nf3 {[%clk 0:03:00]}  Nc6 {[%clk 0:03:00]} 3. d4 {[%clk 0:03:01]}  exd4 {[%clk 0:02:59]} 4. Bc4 {[%clk 0:03:02]}  Bc5 {[%clk 0:02:59]} 5. c3 {[%clk 0:03:02]}  d3 {[%clk 0:02:58]} 6. Qxd3 {[%clk 0:03:01]}  d6 {[%clk 0:02:56]} 7. O-O {[%clk 0:03:00]}  Nf6 {[%clk 0:02:51]} 8. a4 {[%clk 0:02:59]}  Bg4 {[%clk 0:02:37]} 9. b4 {[%clk 0:02:55]}  Bxf3 {[%clk 0:02:34]} 10. gxf3 {[%clk 0:02:49]}  Ne5 {[%clk 0:02:31]} 11. Qe2 {[%clk 0:02:49]}  Qd7 {[%clk 0:02:11]} 12. bxc5 {[%clk 0:02:45]}  Qh3 {[%clk 0:02:10]} 13. Bf4 {[%clk 0:02:20]}  Nxf3+ {[%clk 0:02:06]} 14. Kh1 {[%clk 0:02:19]}  Ng4 {[%clk 0:02:00]} 15. Bg3 {[%clk 0:02:16]}  Nfxh2 {[%clk 0:01:55]} 16. Nd2 {[%clk 0:01:30]}  Nf3+ {[%clk 0:01:47]} 17. Bh2 {[%clk 0:01:23]}  Qxh2# {[%clk 0:01:47]} 0-1

[Event "December 19 Early 2023"]
[Site "https://www.chess.com"]
[Date "2023.12.19"]
[Round "11"]
[White "Olcayoz, Gizem"]
[Black "Rose, Felix"]
[Result "0-1"]
[Board "146"]
[TimeControl "180+1"]
[WhiteFideId "6301444"]
[BlackFideId "5105722"]
[WhiteElo "1856"]
[BlackElo "2039"]
[WhiteTeam "TUR"]
[BlackTeam "MEX"]
[WhiteClock "0:00:00"]
[BlackClock "0:00:05"]

1. e4 {[%clk 0:03:00]}  c5 {[%clk 0:02:58]} 2. Nc3 {[%clk 0:03:00]}  g6 {[%clk 0:02:58]} 3. d4 {[%clk 0:02:59]}  cxd4 {[%clk 0:02:58]} 4. Qxd4 {[%clk 0:03:00]}  Nf6 {[%clk 0:02:58]} 5. Be3 {[%clk 0:03:01]}  Nc6 {[%clk 0:02:58]} 6. Qd2 {[%clk 0:03:01]}  Bg7 {[%clk 0:02:57]} 7. f3 {[%clk 0:03:01]}  O-O {[%clk 0:02:56]} 8. Nge2 {[%clk 0:03:01]}  d6 {[%clk 0:02:48]} 9. h4 {[%clk 0:03:01]}  h5 {[%clk 0:02:35]} 10. Nf4 {[%clk 0:02:58]}  Qa5 {[%clk 0:02:33]} 11. Bc4 {[%clk 0:02:51]}  Ne5 {[%clk 0:02:20]} 12. Bb3 {[%clk 0:02:39]}  Bd7 {[%clk 0:02:21]} 13. O-O-O {[%clk 0:02:33]}  Rac8 {[%clk 0:02:18]} 14. Kb1 {[%clk 0:02:32]}  Nc4 {[%clk 0:02:12]} 15. Bxc4 {[%clk 0:02:29]}  Rxc4 {[%clk 0:02:12]} 16. Ncd5 {[%clk 0:02:29]}  Qd8 {[%clk 0:01:59]} 17. Nxf6+ {[%clk 0:02:04]}  Bxf6 {[%clk 0:01:50]} 18. Nd5 {[%clk 0:02:04]}  Bg7 {[%clk 0:01:43]} 19. Bg5 {[%clk 0:01:51]}  Re8 {[%clk 0:01:37]} 20. Nxe7+ {[%clk 0:01:35]}  Rxe7 {[%clk 0:01:37]} 21. Bxe7 {[%clk 0:01:34]}  Qxe7 {[%clk 0:01:34]} 22. Qxd6 {[%clk 0:01:35]}  Qe8 {[%clk 0:00:59]} 23. Qxd7 {[%clk 0:01:31]}  Qe5 {[%clk 0:00:59]} 24. c3 {[%clk 0:00:46]}  Rxc3 {[%clk 0:00:55]} 25. bxc3 {[%clk 0:00:47]}  Qxc3 {[%clk 0:00:56]} 26. Qb5 {[%clk 0:00:20]}  Qa1+ {[%clk 0:00:47]} 27. Kc2 {[%clk 0:00:20]}  Qc3+ {[%clk 0:00:47]} 28. Kb1 {[%clk 0:00:20]}  Qa1+ {[%clk 0:00:42]} 29. Kc2 {[%clk 0:00:20]}  Qxa2+ {[%clk 0:00:40]} 30. Kd3 {[%clk 0:00:20]}  Qxg2 {[%clk 0:00:38]} 31. Rhf1 {[%clk 0:00:15]}  b6 {[%clk 0:00:38]} 32. Qe8+ {[%clk 0:00:14]}  Kh7 {[%clk 0:00:38]} 33. Qxf7 {[%clk 0:00:14]}  Qb2 {[%clk 0:00:38]} 34. f4 {[%clk 0:00:11]}  Qc3+ {[%clk 0:00:33]} 35. Ke2 {[%clk 0:00:11]}  Qg3 {[%clk 0:00:25]} 36. f5 {[%clk 0:00:07]}  Qg4+ {[%clk 0:00:22]} 37. Ke3 {[%clk 0:00:07]}  Qh3+ {[%clk 0:00:10]} 38. Ke2 {[%clk 0:00:05]}  Qg4+ {[%clk 0:00:09]} 39. Kd3 {[%clk 0:00:04]}  Qh3+ {[%clk 0:00:08]} 40. Kc4 {[%clk 0:00:05]}  Qc3+ {[%clk 0:00:08]} 41. Kd5 {[%clk 0:00:05]}  Qc5+ {[%clk 0:00:08]} 42. Ke6 {[%clk 0:00:04]}  Qe5+ {[%clk 0:00:07]} 43. Kd7 {[%clk 0:00:04]}  Qb5+ {[%clk 0:00:07]} 44. Kc8 {[%clk 0:00:03]}  Qc6+ {[%clk 0:00:06]} 45. Kb8 {[%clk 0:00:03]}  Kh8 {[%clk 0:00:07]} 46. Rd8+ {[%clk 0:00:01]}  Kh7 {[%clk 0:00:08]} 47. Rd7 {[%clk 0:00:00]}  Qc3 {[%clk 0:00:05]} 0-1

[Event "December 19 Early 2023"]
[Site "https://www.chess.com"]
[Date "2023.12.19"]
[Round "11"]
[White "Bogumil, Tatiana"]
[Black "Bushonica"]
[Result "1-0"]
[Board "150"]
[TimeControl "180+1"]
[WhiteFideId "4110579"]
[WhiteElo "1853"]
[BlackElo "1928"]
[WhiteTeam "RUS"]
[WhiteClock "0:00:16"]
[BlackClock "0:01:03"]

1. Nf3 {[%clk 0:02:59]}  d5 {[%clk 0:02:57]} 2. c4 {[%clk 0:02:59]}  c5 {[%clk 0:02:55]} 3. g3 {[%clk 0:02:58]}  e6 {[%clk 0:02:55]} 4. Bg2 {[%clk 0:02:54]}  Nf6 {[%clk 0:02:55]} 5. O-O {[%clk 0:02:51]}  Nc6 {[%clk 0:02:51]} 6. b3 {[%clk 0:02:48]}  Be7 {[%clk 0:02:47]} 7. Bb2 {[%clk 0:02:42]}  O-O {[%clk 0:02:45]} 8. cxd5 {[%clk 0:02:41]}  exd5 {[%clk 0:02:44]} 9. d4 {[%clk 0:02:42]}  c4 {[%clk 0:02:36]} 10. bxc4 {[%clk 0:02:38]}  dxc4 {[%clk 0:02:35]} 11. a4 {[%clk 0:02:34]}  Be6 {[%clk 0:02:29]} 12. Nc3 {[%clk 0:02:31]}  Na5 {[%clk 0:02:25]} 13. e4 {[%clk 0:02:07]}  Nb3 {[%clk 0:02:24]} 14. Ra2 {[%clk 0:02:02]}  Bg4 {[%clk 0:02:21]} 15. d5 {[%clk 0:01:55]}  Bb4 {[%clk 0:02:19]} 16. h3 {[%clk 0:01:45]}  Bxf3 {[%clk 0:02:18]} 17. Bxf3 {[%clk 0:01:46]}  Bxc3 {[%clk 0:02:11]} 18. Bxc3 {[%clk 0:01:47]}  a6 {[%clk 0:02:09]} 19. a5 {[%clk 0:01:42]}  Re8 {[%clk 0:02:03]} 20. Re1 {[%clk 0:01:41]}  Rc8 {[%clk 0:01:57]} 21. g4 {[%clk 0:01:35]}  h6 {[%clk 0:01:57]} 22. e5 {[%clk 0:01:26]}  Nd7 {[%clk 0:01:49]} 23. d6 {[%clk 0:01:21]}  Ndc5 {[%clk 0:01:44]} 24. Bd5 {[%clk 0:01:03]}  Qd7 {[%clk 0:01:44]} 25. Bxc4 {[%clk 0:00:56]}  Qc6 {[%clk 0:01:36]} 26. Bd5 {[%clk 0:00:46]}  Qb5 {[%clk 0:01:33]} 27. Qf3 {[%clk 0:00:45]}  Rf8 {[%clk 0:01:30]} 28. h4 {[%clk 0:00:31]}  Ne6 {[%clk 0:01:26]} 29. Ba1 {[%clk 0:00:23]}  Nbd4 {[%clk 0:01:25]} 30. Qe4 {[%clk 0:00:20]}  Qb4 {[%clk 0:01:21]} 31. Bxd4 {[%clk 0:00:18]}  Qxd4 {[%clk 0:01:20]} 32. Bxe6 {[%clk 0:00:16]}  Qxe4 {[%clk 0:01:19]} 33. Bxf7+ {[%clk 0:00:16]}  Rxf7 {[%clk 0:01:18]} 34. Rxe4 {[%clk 0:00:16]}  Re8 {[%clk 0:01:13]} 35. e6 {[%clk 0:00:16]}  Rf6 {[%clk 0:01:03]} 36. d7 {[%clk 0:00:16]} 1-0

[Event "December 19 Early 2023"]
[Site "https://www.chess.com"]
[Date "2023.12.19"]
[Round "11"]
[White "Zepeda Berlanga, Jan Enrique"]
[Black "Gulamirian, Korun"]
[Result "0-1"]
[Board "151"]
[TimeControl "180+1"]
[WhiteFideId "5132355"]
[BlackFideId "4144899"]
[WhiteElo "1680"]
[BlackElo "1621"]
[WhiteTeam "MEX"]
[BlackTeam "RUS"]
[WhiteClock "0:00:17"]
[BlackClock "0:00:28"]

1. e4 {[%clk 0:02:59]}  e5 {[%clk 0:02:59]} 2. Nf3 {[%clk 0:02:49]}  Nc6 {[%clk 0:02:59]} 3. Bc4 {[%clk 0:02:49]}  Nf6 {[%clk 0:02:58]} 4. O-O {[%clk 0:02:44]}  Bc5 {[%clk 0:02:55]} 5. Re1 {[%clk 0:02:42]}  O-O {[%clk 0:02:53]} 6. c3 {[%clk 0:02:40]}  Bb6 {[%clk 0:02:51]} 7. d4 {[%clk 0:02:37]}  exd4 {[%clk 0:02:49]} 8. cxd4 {[%clk 0:02:37]}  d5 {[%clk 0:02:49]} 9. exd5 {[%clk 0:02:27]}  Nxd5 {[%clk 0:02:48]} 10. Bg5 {[%clk 0:02:27]}  Qd6 {[%clk 0:02:39]} 11. Nc3 {[%clk 0:02:20]}  Nxc3 {[%clk 0:02:25]} 12. bxc3 {[%clk 0:02:18]}  Bg4 {[%clk 0:02:23]} 13. h3 {[%clk 0:02:12]}  Bh5 {[%clk 0:02:21]} 14. g4 {[%clk 0:02:06]}  Bg6 {[%clk 0:02:19]} 15. d5 {[%clk 0:02:05]}  Na5 {[%clk 0:02:15]} 16. Bb3 {[%clk 0:01:59]}  h6 {[%clk 0:01:58]} 17. Be7 {[%clk 0:01:59]}  Qf4 {[%clk 0:01:50]} 18. Bxf8 {[%clk 0:01:56]}  Rxf8 {[%clk 0:01:47]} 19. Kg2 {[%clk 0:01:55]}  c5 {[%clk 0:01:40]} 20. Qc1 {[%clk 0:01:35]}  Qd6 {[%clk 0:01:35]} 21. Ne5 {[%clk 0:01:30]}  Bc7 {[%clk 0:01:24]} 22. c4 {[%clk 0:01:02]}  Nxb3 {[%clk 0:01:17]} 23. axb3 {[%clk 0:01:02]}  Bh7 {[%clk 0:01:13]} 24. Rxa7 {[%clk 0:00:56]}  f6 {[%clk 0:01:12]} 25. Nf3 {[%clk 0:00:56]}  Qb6 {[%clk 0:01:00]} 26. Ra3 {[%clk 0:00:55]}  Qb4 {[%clk 0:00:59]} 27. Re7 {[%clk 0:00:46]}  Bf4 {[%clk 0:00:58]} 28. Qa1 {[%clk 0:00:42]}  Bd6 {[%clk 0:00:57]} 29. Re6 {[%clk 0:00:40]}  Bb8 {[%clk 0:00:50]} 30. Qb2 {[%clk 0:00:33]}  b5 {[%clk 0:00:45]} 31. Rb6 {[%clk 0:00:31]}  Be5 {[%clk 0:00:31]} 32. Nxe5 {[%clk 0:00:27]}  fxe5 {[%clk 0:00:31]} 33. Rxb5 {[%clk 0:00:21]}  Qe1 {[%clk 0:00:29]} 34. Qc2 {[%clk 0:00:17]}  Bxc2 {[%clk 0:00:28]} 0-1

[Event "December 19 Early 2023"]
[Site "https://www.chess.com"]
[Date "2023.12.19"]
[Round "11"]
[White "Sarkar, Justin"]
[Black "Mayaud, Raphael"]
[Result "1-0"]
[Board "153"]
[TimeControl "180+1"]
[WhiteFideId "2010011"]
[BlackFideId "627151"]
[WhiteElo "2138"]
[BlackElo "2191"]
[WhiteTeam "USA"]
[BlackTeam "FRA"]
[WhiteClock "0:00:32"]
[BlackClock "0:01:06"]

1. e4 {[%clk 0:02:39]}  c5 {[%clk 0:02:57]} 2. Nf3 {[%clk 0:02:38]}  e6 {[%clk 0:02:57]} 3. d4 {[%clk 0:02:22]}  cxd4 {[%clk 0:02:57]} 4. Nxd4 {[%clk 0:02:21]}  a6 {[%clk 0:02:57]} 5. Nd2 {[%clk 0:02:16]}  Nc6 {[%clk 0:02:47]} 6. Nxc6 {[%clk 0:02:10]}  dxc6 {[%clk 0:02:48]} 7. e5 {[%clk 0:02:01]}  Ne7 {[%clk 0:02:31]} 8. Bd3 {[%clk 0:01:42]}  Ng6 {[%clk 0:02:26]} 9. Nf3 {[%clk 0:01:33]}  Qc7 {[%clk 0:02:25]} 10. Qe2 {[%clk 0:01:29]}  Be7 {[%clk 0:02:20]} 11. O-O {[%clk 0:01:27]}  c5 {[%clk 0:02:04]} 12. a4 {[%clk 0:01:22]}  b6 {[%clk 0:02:02]} 13. h4 {[%clk 0:00:52]}  h5 {[%clk 0:01:42]} 14. Bxg6 {[%clk 0:00:48]}  fxg6 {[%clk 0:01:40]} 15. Qe4 {[%clk 0:00:46]}  Kf7 {[%clk 0:01:38]} 16. Qxa8 {[%clk 0:00:44]}  Rf8 {[%clk 0:01:27]} 17. Qe4 {[%clk 0:00:41]}  Bb7 {[%clk 0:01:27]} 18. Qe2 {[%clk 0:00:39]}  Qc6 {[%clk 0:01:25]} 19. Bg5 {[%clk 0:00:37]}  Bxg5 {[%clk 0:01:18]} 20. Nxg5+ {[%clk 0:00:37]}  Kg8 {[%clk 0:01:18]} 21. f3 {[%clk 0:00:37]}  Rf4 {[%clk 0:01:18]} 22. g3 {[%clk 0:00:33]}  Rxa4 {[%clk 0:01:14]} 23. Rxa4 {[%clk 0:00:32]}  Qxa4 {[%clk 0:01:06]} 24. Rd1 {[%clk 0:00:32]} 1-0